[Event "NOR-chT Eliteserien 2018-19"]
[Site "Norway"]
[Date "2019.03.08"]
[Round "7.29"]
[White "Hammerstad, Asmund"]
[Black "Gullaksen, Eirik"]
[Result "1/2-1/2"]
[ECO "E94"]
[WhiteElo "2205"]
[BlackElo "2341"]
[Annotator "NA RC"]
[PlyCount "118"]
[EventDate "2018.11.02"]
[EventType "team-tourn"]
[EventCountry "NOR"]
[SourceTitle "playchess.com"]
[Source "ChessBase"]
[SourceQuality "1"]
[TimeControl "40/5400+30:1800+30"]

{[%evp 22,116,42,32767,43,32,42,38,32,20,21,16,50,32767,38,20,64,52,89,32767,32767,58,61,32767,32767,53,32767,114,32767,83,88,32767,87,79,91,76,80,60,70,32767,32767,56,248,258,32767,32767,695,32767,828,158,160,156,32767,109,32767,67,32767,32767,218,226,214,102,96,32767,145,32767,104,93,95,32767,32767,32767,32767,32767,32767,32767,32767,32767,32767,32767,32767,32767,32767,32767,48,50,51,54,56,32767,60,55,48,42,59,22,30]} 1. d4 {[%emt 0:00:00]} Nf6 {[%emt 0:00:00]} 2. c4 {[%emt 0:00:00]} g6 {[%emt 0:00:23]} 3. Nc3 {[%emt 0:00:17]} Bg7 {[%emt 0:00:13]} 4. e4 {[%emt 0:00:33]} O-O {[%emt 0:00:21]} 5. Nf3 {[%emt 0:00:11]} d6 {[%emt 0:00:29]} 6. Be2 {[%emt 0:00:29]} Na6 {[%emt 0:00:36]} 7. O-O {[%emt 0:00:16]} e5 {[%emt 0:00:37]} 8. Be3 {[%emt 0:00:34]} Ng4 {[%emt 0:00:35]} 9. Bg5 {[%emt 0:00:17]} Qe8 {[%emt 0:00:27]} 10. dxe5 {[%emt 0:01:16]} dxe5 {[%emt 0:00:36]} 11. Qb3 {[%emt 0:07:47] E94: King's Indian: Classical: 6 Be2 e5 7 0-0: Various Black 7th moves} f6 $146 {[%emt 0:07:46]} ({Predecessor:} 11... Kh8 12. Qa3 f6 13. Bh4 c5 14. Nd5 b6 15. Ne1 Nh6 16. Nc2 Ng8 17. Nce3 Ne7 18. Bd1 Nc6 {0-1 (41) Aleksandrov,A (2609)-Kokarev,D (2596) Izhevsk 2011}) 12. Bd2 {[%emt 0:03:42]} Rf7 {[%emt 0:06:01]} 13. h3 {[%emt 0:03:29]} Nh6 $1 {[%emt 0:02:01]} 14. Nb5 {[%emt 0:09:04]} Be6 {[%emt 0:14:35]} 15. Be3 {[%emt 0:01:02]} Bf8 {[%emt 0:05:08]} 16. Rfd1 {[%emt 0:00:37]} Qb8 {[%emt 0:12:59]} 17. Qc2 {[%emt 0:06:16]} c6 {[%emt 0:02:33]} 18. Na3 {[%emt 0:00:53]} Re7 {[%emt 0:10:14]} 19. c5 {[%emt 0:01:17]} Nc7 {[%emt 0:00:05]} 20. Nc4 {[%emt 0:02:48]} Nf7 {[%emt 0:00:30]} 21. Rd2 {[%emt 0:07:23]} Ne8 {[%emt 0:02:49]} 22. Rad1 {[%emt 0:00:22]} Qc7 {[%emt 0:00:34]} 23. Qa4 {[%emt 0:08:29]} a6 {[%emt 0:06:05]} 24. Nb6 {[%emt 0:00:45]} Rd8 {[%emt 0:00:29]} 25. Bc4 {[%emt 0:01:31]} Ng7 {[%emt 0:01:35]} 26. Qb3 {[%emt 0:00:51]} Rxd2 {[%emt 0:01:55]} 27. Rxd2 {[%emt 0:02:13]} Bxc4 {[%emt 0:08:08]} 28. Qxc4 {[%emt 0:00:16]} Ne6 {[%emt 0:00:28]} 29. b4 {[%emt 0:02:53]} h5 {[%emt 0:01:28]} 30. Qc2 {[%emt 0:06:15]} Kh7 {[%emt 0:01:06]} 31. Nh4 {[%emt 0:03:05]} Bh6 $2 {[%emt 0:00:35] [#]} (31... Nfg5 $16) 32. Nd5 $1 {[%emt 0:01:21]} cxd5 {[%emt 0:02:52]} 33. exd5 {[%emt 0:01:07]} Nf8 $2 {[%emt 0:00:32]} (33... e4) 34. d6 {[%emt 0:01:35]} Nxd6 {[%emt 0:00:58]} 35. Rxd6 $2 {[%emt 0:00:15]} (35. cxd6 $18 Qxc2 36. dxe7 (36. Rxc2 Rd7 $15) 36... Qc1+ 37. Kh2) 35... Rf7 {[%emt 0:00:54]} 36. Bxh6 {[%emt 0:08:11]} Kxh6 {[%emt 0:00:10] [#]} 37. Qe4 {[%emt 0:02:13]} (37. Nf3 $1 $18) 37... Kg7 {[%emt 0:01:31]} 38. g3 {[%emt 0:00:26]} Re7 {[%emt 0:01:09]} 39. Rb6 {[%emt 0:01:34]} Rd7 {[%emt 0:06:57]} (39... Qc8 $16 {is a better defense.}) 40. g4 {[%emt 0:02:31]} hxg4 {[%emt 0:00:26]} 41. hxg4 {[%emt 0:31:27]} (41. Qxg4 $18 Qd8 42. Nf5+ Kh8 43. Qh4+ Nh7 44. Nd6) 41... Re7 {[%emt 0:30:58]} 42. Kg2 {[%emt 0:07:52]} Rd7 {[%emt 0:00:00]} (42... Qd7 $142) 43. a3 {[%emt 0:00:00]} Re7 {[%emt 0:00:00]} 44. Kg3 {[%emt 0:00:00]} Qd7 {[%emt 0:00:00]} 45. f3 {[%emt 0:00:00]} Qc7 {[%emt 0:00:00]} 46. Kh3 {[%emt 0:00:00]} Qd7 {[%emt 0:00:00]} 47. a4 {[%emt 0:00:00]} a5 {[%emt 0:00:00]} 48. bxa5 {[%emt 0:00:00]} Qc7 {[%emt 0:00:00]} 49. c6 {[%emt 0:00:02]} bxc6 {[%emt 0:00:00]} 50. Qxc6 {[%emt 0:00:06]} Qxc6 {[%emt 0:00:00]} 51. Rxc6 {[%emt 0:00:07]} Ra7 {[%emt 0:00:00]} 52. a6 {[%emt 0:00:41]} Nd7 $1 {[%emt 0:00:00]} 53. g5 {[%emt 0:01:15]} fxg5 {[%emt 0:00:00]} 54. Nxg6 {[%emt 0:00:07]} Nb8 {[%emt 0:00:00]} 55. Rb6 {[%emt 0:00:26]} Nxa6 {[%emt 0:00:00]} 56. Nxe5 {[%emt 0:00:13]} Nc5 {[%emt 0:00:00]} 57. Rg6+ {[%emt 0:00:36]} Kh7 {[%emt 0:00:00]} 58. Rxg5 {[%emt 0:00:34]} Rxa4 $11 {[%emt 0:00:00]} 59. Ng4 {[%emt 0:02:15]} Ne6 {[%emt 0:00:00]} 1/2-1/2

[Event "NOR-chT Eliteserien 2018-19"]
[Site "Norway"]
[Date "2019.03.08"]
[Round "7.30"]
[White "Frisvold, Ole Emil"]
[Black "Diesen, Bruce"]
[Result "1-0"]
[ECO "E17"]
[WhiteElo "2131"]
[BlackElo "2144"]
[Annotator "NA RC"]
[PlyCount "87"]
[EventDate "2018.11.02"]
[EventType "team-tourn"]
[EventCountry "NOR"]
[SourceTitle "playchess.com"]
[Source "ChessBase"]
[SourceQuality "1"]
[TimeControl "40/5400+30:1800+30"]

1. d4 {[%emt 0:00:00]} Nf6 {[%emt 0:00:00]} 2. c4 {[%emt 0:00:00]} e6 {[%emt 0:00:25]} 3. Nf3 {[%emt 0:00:00]} b6 {[%emt 0:00:44]} 4. g3 {[%emt 0:00:36]} Bb7 {[%emt 0:00:27]} 5. Bg2 {[%emt 0:03:38]} Be7 {[%emt 0:00:14]} 6. O-O {[%emt 0:00:32]} O-O {[%emt 0:00:06]} 7. d5 {[%emt 0:01:39]} exd5 {[%emt 0:03:11]} 8. Nh4 {[%emt 0:01:03]} c6 {[%emt 0:04:33]} 9. cxd5 {[%emt 0:01:11]} Nxd5 {[%emt 0:00:52]} 10. Nf5 {[%emt 0:00:44]} Na6 {[%emt 0:12:49] E17: Queen's Indian: 4 g3 Bb7 5 Bg2 Be7} (10... Nc7 11. Nc3 d5 12. e4 Bf6 13. exd5 Nxd5 14. Nxd5 cxd5 15. Re1 Na6 16. Bf4 Bxb2 17. Rb1 Bf6 18. Nd6 Bc6 19. Bxd5 Bxd5 20. Qxd5 Qd7 21. Rbd1 Rad8 22. h4 Nc5 23. Bg5 Bxg5 24. hxg5 Qa4 25. Re7 Rd7 26. Rde1 Nb7 27. Qxf7+ {1-0 (27) Adhiban,B (2655)-Kovalenko,I (2635) chess.com INT 2018}) 11. e4 $1 {[%emt 0:05:37] LiveBook: 26 Games} Ndc7 {[%emt 0:04:55]} 12. Qg4 {[%emt 0:02:56]} Ne6 {[%emt 0:02:13]} 13. Rd1 $146 {[%emt 0:14:01]} ({Predecessor:} 13. Nc3 Bf6 14. Rd1 Qc7 15. Bf4 h5 16. Bxc7 hxg4 17. Bd6 Rfe8 18. e5 {1-0 (53) Jablonicky,M (2198)-Theocharous,S (1972) Prague 2016}) 13... Nac7 {[%emt 0:04:37]} 14. Nc3 {[%emt 0:09:02]} d5 $2 {[%emt 0:15:44]} (14... Kh8 $11 {and Black has nothing to worry.}) 15. exd5 {[%emt 0:01:49]} cxd5 {[%emt 0:02:20] [#]} 16. Nxd5 $1 {[%emt 0:06:49]} Bxd5 {[%emt 0:04:54]} 17. Bxd5 {[%emt 0:00:40]} Nxd5 {[%emt 0:04:21]} 18. Rxd5 {[%emt 0:00:15]} Qe8 {[%emt 0:00:35]} 19. Nxg7 {[%emt 0:14:55]} f5 {[%emt 0:03:34]} 20. Nxf5+ {[%emt 0:02:19]} Kh8 {[%emt 0:00:32]} 21. Nxe7 {[%emt 0:02:30]} Qxe7 {[%emt 0:00:32]} 22. Bd2 {[%emt 0:01:50]} Rac8 {[%emt 0:01:59]} 23. Bc3+ {[%emt 0:00:48]} Rxc3 {[%emt 0:00:10]} 24. bxc3 {[%emt 0:00:29]} Nc5 {[%emt 0:00:41]} 25. Qd4+ {[%emt 0:02:56]} Kg8 {[%emt 0:00:26]} 26. Re5 {[%emt 0:01:03]} Qf6 {[%emt 0:00:40]} 27. f4 {[%emt 0:00:58]} h6 {[%emt 0:01:37]} 28. Rae1 {[%emt 0:01:22]} Qg6 {[%emt 0:01:49]} 29. f5 {[%emt 0:04:05]} Qg5 {[%emt 0:02:22]} 30. Qd6 {[%emt 0:02:00]} Rf7 {[%emt 0:03:29]} 31. Re8+ {[%emt 0:01:08]} Kh7 {[%emt 0:00:25]} 32. R8e7 {[%emt 0:00:48]} Kg8 {[%emt 0:03:24]} 33. Rxf7 {[%emt 0:01:36]} Kxf7 {[%emt 0:00:06]} 34. Qg6+ {[%emt 0:01:19]} Qxg6 {[%emt 0:00:12]} 35. fxg6+ {[%emt 0:00:04]} Kxg6 {[%emt 0:00:06]} 36. Re7 {[%emt 0:00:12]} a5 {[%emt 0:01:36]} 37. Rc7 {[%emt 0:00:32]} Kg5 {[%emt 0:00:30]} 38. Kf2 {[%emt 0:00:20]} h5 {[%emt 0:00:40]} 39. Ke3 {[%emt 0:00:35]} Kg4 $18 {[%emt 0:00:16]} 40. Rh7 {[%emt 0:00:33]} Ne6 {[%emt 0:02:15]} 41. Rh6 {[%emt 0:30:43]} Nc7 {[%emt 0:30:16]} 42. Kf2 {[%emt 0:00:28]} b5 {[%emt 0:01:26]} 43. h3+ {[%emt 0:00:32]} Kxh3 {[%emt 0:01:02]} 44. Kf3 {[%emt 0:00:29]} 1-0

[Event "NOR-chT Eliteserien 2018-19"]
[Site "Norway"]
[Date "2019.03.09"]
[Round "8.2"]
[White "Mihajlov, Sebastian"]
[Black "Hobber, Anders"]
[Result "1/2-1/2"]
[ECO "D11"]
[WhiteElo "2363"]
[BlackElo "2310"]
[Annotator "NA"]
[PlyCount "71"]
[EventDate "2018.11.02"]
[EventType "team-tourn"]
[EventCountry "NOR"]
[SourceTitle "playchess.com"]
[Source "ChessBase"]
[SourceQuality "1"]
[TimeControl "40/5400+30:1800+30"]

1. d4 {[%emt 0:00:00]} d5 {[%emt 0:00:00]} 2. c4 {[%emt 0:00:00]} c6 {[%emt 0:00:00]} 3. Nf3 {[%emt 0:00:08]} Nf6 {[%emt 0:00:00]} 4. e3 {[%emt 0:00:44]} a6 {[%emt 0:00:59]} 5. Nbd2 {[%emt 0:02:01]} g6 {[%emt 0:01:42]} 6. b4 {[%emt 0:01:17]} Bg7 {[%emt 0:00:43]} 7. Bb2 {[%emt 0:02:44]} O-O {[%emt 0:00:41]} 8. Nb3 {[%emt 0:01:12]} Bg4 {[%emt 0:03:08]} 9. Bd3 {[%emt 0:05:15]} Nbd7 {[%emt 0:03:06]} 10. O-O {[%emt 0:00:36]} dxc4 {[%emt 0:13:12]} 11. Bxc4 {[%emt 0:01:22]} Nd5 {[%emt 0:08:24]} 12. a3 {[%emt 0:24:59]} N7b6 {[%emt 0:05:23]} 13. Be2 {[%emt 0:02:08]} Na4 {[%emt 0:01:34]} 14. Qd2 {[%emt 0:00:04]} Nxb2 {[%emt 0:01:22]} 15. Qxb2 {[%emt 0:00:05]} Qc7 {[%emt 0:04:46]} 16. Rac1 {[%emt 0:00:22]} Rad8 {[%emt 0:02:02]} 17. h3 {[%emt 0:03:18]} Bxf3 {[%emt 0:09:42]} 18. Bxf3 {[%emt 0:01:02]} Qb8 {[%emt 0:01:22]} 19. Nc5 {[%emt 0:04:35]} e5 {[%emt 0:08:39]} 20. dxe5 {[%emt 0:00:17]} Bxe5 {[%emt 0:00:09]} 21. Qb3 {[%emt 0:00:06]} Nf6 {[%emt 0:02:07]} 22. Rfd1 {[%emt 0:01:14]} Qc7 {[%emt 0:03:04]} 23. a4 {[%emt 0:13:05]} Bh2+ {[%emt 0:04:47]} 24. Kh1 {[%emt 0:00:55]} Bd6 {[%emt 0:00:21]} 25. Qc3 {[%emt 0:03:58]} Be5 {[%emt 0:03:04]} 26. Qc4 {[%emt 0:01:12]} Qe7 {[%emt 0:05:36]} 27. g3 {[%emt 0:08:11]} Bd6 {[%emt 0:01:57]} 28. Kg2 {[%emt 0:02:35]} Kg7 {[%emt 0:00:30]} 29. Qc3 {[%emt 0:08:22]} Be5 {[%emt 0:00:41]} 30. Qc4 {[%emt 0:00:04]} Bd6 {[%emt 0:00:05]} 31. Rd3 {[%emt 0:02:42]} Bxc5 {[%emt 0:04:27]} 32. Rxd8 {[%emt 0:00:38]} Rxd8 {[%emt 0:00:14]} 33. Qxc5 {[%emt 0:01:08]} Qxc5 {[%emt 0:03:50]} 34. Rxc5 {[%emt 0:00:07]} Rd2 {[%emt 0:06:08]} 35. b5 {[%emt 0:03:10]} axb5 {[%emt 0:00:39]} 36. axb5 {[%emt 0:00:09]} 1/2-1/2

[Event "NOR-chT Eliteserien 2018-19"]
[Site "Norway"]
[Date "2019.03.09"]
[Round "8.3"]
[White "Hole, Oystein"]
[Black "Getz, Nicolai"]
[Result "1-0"]
[ECO "E97"]
[WhiteElo "2299"]
[BlackElo "2392"]
[Annotator "ChessBase"]
[PlyCount "213"]
[EventDate "2018.11.02"]
[EventType "team-tourn"]
[EventCountry "NOR"]
[SourceTitle "playchess.com"]
[Source "ChessBase"]
[SourceQuality "1"]
[TimeControl "40/5400+30:1800+30"]

1. Nf3 {[%emt 0:00:00]} Nf6 {[%emt 0:00:00]} 2. c4 {[%emt 0:00:00]} g6 {[%emt 0:00:00]} 3. Nc3 {[%emt 0:00:00]} Bg7 {[%emt 0:00:00]} 4. e4 {[%emt 0:00:00]} d6 {[%emt 0:00:00]} 5. d4 {[%emt 0:00:00]} O-O {[%emt 0:00:06]} 6. Be2 {[%emt 0:00:05]} e5 {[%emt 0:00:16]} 7. O-O {[%emt 0:00:09]} Nc6 {[%emt 0:00:05]} 8. d5 {[%emt 0:00:16]} Ne7 {[%emt 0:00:09]} 9. b4 {[%emt 0:00:08]} Nh5 {[%emt 0:00:09]} 10. g3 {[%emt 0:00:16]} f5 {[%emt 0:04:27]} 11. Ng5 {[%emt 0:00:21]} Nf6 {[%emt 0:01:19]} 12. Bf3 {[%emt 0:00:09]} c6 {[%emt 0:03:16]} 13. Bg2 {[%emt 0:00:37]} cxd5 {[%emt 0:09:24]} 14. cxd5 {[%emt 0:07:01]} h6 {[%emt 0:05:31]} 15. Ne6 {[%emt 0:00:09]} Bxe6 {[%emt 0:00:08]} 16. dxe6 {[%emt 0:00:01]} fxe4 {[%emt 0:01:01]} 17. Qb3 {[%emt 0:11:12]} d5 {[%emt 0:03:53]} 18. b5 {[%emt 0:02:08]} Nf5 {[%emt 0:17:48]} 19. Nxe4 {[%emt 0:02:07]} Ne7 {[%emt 0:16:13]} 20. Nxf6+ {[%emt 0:27:18]} Rxf6 {[%emt 0:00:10]} 21. Ba3 {[%emt 0:00:05]} e4 {[%emt 0:00:51]} 22. Rad1 {[%emt 0:03:09]} Rxe6 {[%emt 0:01:23]} 23. Rfe1 {[%emt 0:01:34]} Qb6 {[%emt 0:13:54]} 24. Bxe4 {[%emt 0:16:48]} Kh8 {[%emt 0:10:00]} 25. Bg2 {[%emt 0:05:34]} Rxe1+ {[%emt 0:00:11]} 26. Rxe1 {[%emt 0:00:07]} Nf5 {[%emt 0:00:40]} 27. Bxd5 {[%emt 0:00:52]} Nd4 {[%emt 0:01:19]} 28. Qc4 {[%emt 0:01:06]} Qxb5 {[%emt 0:04:26]} 29. Qxb5 {[%emt 0:04:58]} Nxb5 {[%emt 0:00:04]} 30. Bb4 {[%emt 0:00:10]} Bc3 {[%emt 0:05:58]} 31. Bxc3+ {[%emt 0:00:58]} Nxc3 {[%emt 0:00:04]} 32. Bxb7 {[%emt 0:00:13]} Rb8 {[%emt 0:00:05]} 33. Re7 {[%emt 0:00:19]} Nxa2 {[%emt 0:00:26]} 34. Be4 {[%emt 0:00:10]} Rb6 {[%emt 0:02:06]} 35. Rxa7 {[%emt 0:00:09]} Nc3 {[%emt 0:00:05]} 36. Bc2 {[%emt 0:01:04]} Ne2+ {[%emt 0:01:04]} 37. Kg2 {[%emt 0:00:15]} Nd4 {[%emt 0:00:04]} 38. Bd3 {[%emt 0:00:19]} Rd6 {[%emt 0:00:10]} 39. Rb7 {[%emt 0:02:26]} Kg8 {[%emt 0:00:56]} 40. Bb1 {[%emt 0:00:41]} Kh8 {[%emt 0:00:59]} 41. f4 {[%emt 0:42:58]} Ne2 {[%emt 0:08:39]} 42. Rc7 {[%emt 0:00:00]} Nd4 {[%emt 0:05:24]} 43. Kf2 {[%emt 0:00:00]} Nb5 {[%emt 0:00:13]} 44. Rc5 {[%emt 0:00:00]} Nd4 {[%emt 0:00:11]} 45. Ke3 {[%emt 0:00:00]} Kg7 {[%emt 0:00:43]} 46. g4 {[%emt 0:00:00]} Ne6 {[%emt 0:01:04]} 47. Rb5 {[%emt 0:00:00]} Rd1 {[%emt 0:04:29]} 48. Rb7+ {[%emt 0:00:00]} Kf6 {[%emt 0:00:43]} 49. Rb6 {[%emt 0:00:00]} Re1+ {[%emt 0:13:47]} 50. Kf2 {[%emt 0:00:00]} Rh1 {[%emt 0:00:25]} 51. f5 {[%emt 0:00:00]} gxf5 {[%emt 0:00:32]} 52. gxf5 {[%emt 0:00:00]} Rxh2+ {[%emt 0:00:05]} 53. Kf3 {[%emt 0:01:07]} Rh3+ {[%emt 0:00:05]} 54. Kg4 {[%emt 0:01:58]} Re3 {[%emt 0:00:09]} 55. fxe6 {[%emt 0:00:18]} Rxe6 {[%emt 0:00:04]} 56. Rb5 {[%emt 0:00:12]} Re1 {[%emt 0:00:54]} 57. Bd3 {[%emt 0:00:34]} Re3 {[%emt 0:00:37]} 58. Bf5 {[%emt 0:00:19]} h5+ {[%emt 0:01:16]} 59. Kf4 {[%emt 0:00:09]} Re1 {[%emt 0:00:16]} 60. Rb6+ {[%emt 0:00:09]} Ke7 {[%emt 0:00:23]} 61. Kg5 {[%emt 0:00:31]} Rh1 {[%emt 0:00:38]} 62. Be4 {[%emt 0:00:42]} Rh2 {[%emt 0:00:27]} 63. Kf5 {[%emt 0:00:40]} Ra2 {[%emt 0:00:51]} 64. Ke5 {[%emt 0:00:12]} Ra5+ {[%emt 0:00:27]} 65. Bd5 {[%emt 0:00:09]} Kf8 {[%emt 0:00:42]} 66. Rb7 {[%emt 0:00:37]} Ra1 {[%emt 0:00:40]} 67. Rf7+ {[%emt 0:01:11]} Ke8 {[%emt 0:00:05]} 68. Rh7 {[%emt 0:00:09]} Kf8 {[%emt 0:00:29]} 69. Be6 {[%emt 0:02:12]} Rf1 {[%emt 0:00:35]} 70. Rc7 {[%emt 0:03:54]} h4 {[%emt 0:00:47]} 71. Bf5 {[%emt 0:00:23]} Ke8 {[%emt 0:00:32]} 72. Kf6 {[%emt 0:00:55]} Rd1 {[%emt 0:00:03]} 73. Rc4 {[%emt 0:00:33]} h3 {[%emt 0:00:33]} 74. Bxh3 {[%emt 0:00:03]} Rd3 {[%emt 0:00:49]} 75. Bg4 {[%emt 0:01:04]} Rd6+ {[%emt 0:00:22]} 76. Ke5 {[%emt 0:01:18]} Rh6 {[%emt 0:00:32]} 77. Be6 {[%emt 0:00:12]} Kf8 {[%emt 0:00:44]} 78. Rg4 {[%emt 0:01:20]} Ke7 {[%emt 0:00:10]} 79. Rg7+ {[%emt 0:00:19]} Kf8 {[%emt 0:00:04]} 80. Rf7+ {[%emt 0:00:54]} Kg8 {[%emt 0:00:05]} 81. Rf1+ {[%emt 0:01:37]} Kg7 {[%emt 0:00:11]} 82. Bf5 {[%emt 0:00:09]} Ra6 {[%emt 0:00:38]} 83. Be6 {[%emt 0:00:04]} Ra5+ {[%emt 0:00:10]} 84. Bd5 {[%emt 0:00:01]} Rb5 {[%emt 0:00:31]} 85. Rg1+ {[%emt 0:00:05]} Kf8 {[%emt 0:01:04]} 86. Rg8+ {[%emt 0:00:15]} Ke7 {[%emt 0:00:04]} 87. Rg7+ {[%emt 0:00:05]} Kf8 {[%emt 0:00:35]} 88. Rf7+ {[%emt 0:00:20]} Ke8 {[%emt 0:00:06]} 89. Ra7 {[%emt 0:00:20]} Rb6 {[%emt 0:00:28]} 90. Be6 {[%emt 0:01:17]} Kd8 {[%emt 0:00:08]} 91. Kd5 {[%emt 0:00:12]} Ke8 {[%emt 0:00:49]} 92. Rd7 {[%emt 0:02:42]} Rb5+ {[%emt 0:00:18]} 93. Kd6 {[%emt 0:00:07]} Rg5 {[%emt 0:01:16]} 94. Bf7+ {[%emt 0:00:45]} Kf8 {[%emt 0:00:04]} 95. Ke6 {[%emt 0:00:42]} Kg7 {[%emt 0:00:40]} 96. Rd8 {[%emt 0:00:19]} Rb5 {[%emt 0:00:30]} 97. Rg8+ {[%emt 0:00:04]} Kh7 {[%emt 0:00:09]} 98. Rg3 {[%emt 0:00:13]} Rb2 {[%emt 0:01:03]} 99. Bg6+ {[%emt 0:01:29]} Kh6 {[%emt 0:00:13]} 100. Bf5 {[%emt 0:00:29]} Rb6+ {[%emt 0:00:15]} 101. Ke5 {[%emt 0:00:04]} Rb5+ {[%emt 0:00:19]} 102. Kf6 {[%emt 0:00:04]} Rb6+ {[%emt 0:00:03]} 103. Be6 {[%emt 0:00:03]} Rb5 {[%emt 0:00:42]} 104. Ra3 {[%emt 0:00:44]} Rc5 {[%emt 0:00:40]} 105. Bd7 {[%emt 0:00:07]} Rd5 {[%emt 0:01:12]} 106. Bf5 {[%emt 0:00:09]} Rd6+ {[%emt 0:00:32]} 107. Be6 {[%emt 0:00:02]} 1-0

[Event "NOR-chT Eliteserien 2018-19"]
[Site "Norway"]
[Date "2019.03.09"]
[Round "8.4"]
[White "Ogaard, Leif"]
[Black "Skrondal, Inge Sandstad"]
[Result "1/2-1/2"]
[ECO "D56"]
[WhiteElo "2382"]
[BlackElo "2281"]
[Annotator "NA"]
[PlyCount "84"]
[EventDate "2018.11.02"]
[EventType "team-tourn"]
[EventCountry "NOR"]
[SourceTitle "playchess.com"]
[Source "ChessBase"]
[SourceQuality "1"]
[TimeControl "40/5400+30:1800+30"]

1. d4 {[%emt 0:00:00]} Nf6 {[%emt 0:00:07]} 2. c4 {[%emt 0:00:00]} e6 {[%emt 0:00:23]} 3. Nc3 {[%emt 0:00:02]} d5 {[%emt 0:00:04]} 4. Bg5 {[%emt 0:00:12]} Be7 {[%emt 0:00:03]} 5. e3 {[%emt 0:00:10]} h6 {[%emt 0:00:19]} 6. Bh4 {[%emt 0:00:19]} O-O {[%emt 0:00:07]} 7. Qb3 {[%emt 0:03:40]} Nbd7 {[%emt 0:16:39]} 8. Nf3 {[%emt 0:01:07]} c6 {[%emt 0:02:16]} 9. Rc1 {[%emt 0:06:01]} Ne4 {[%emt 0:01:47]} 10. Bxe7 {[%emt 0:01:30]} Qxe7 {[%emt 0:00:02]} 11. Bd3 {[%emt 0:01:30]} Nxc3 {[%emt 0:07:24]} 12. Qxc3 {[%emt 0:00:22]} dxc4 {[%emt 0:08:47]} 13. Bxc4 {[%emt 0:01:15]} Re8 {[%emt 0:00:42]} 14. Rd1 {[%emt 0:06:16]} b6 {[%emt 0:04:01]} 15. O-O {[%emt 0:01:05]} Bb7 {[%emt 0:02:26]} 16. e4 {[%emt 0:09:09]} a6 {[%emt 0:07:49]} 17. Rfe1 {[%emt 0:14:22]} b5 {[%emt 0:05:28]} 18. Bb3 {[%emt 0:03:59]} c5 {[%emt 0:00:42]} 19. d5 {[%emt 0:01:04]} exd5 {[%emt 0:00:07]} 20. Bxd5 {[%emt 0:00:20]} Bxd5 {[%emt 0:13:20]} 21. Rxd5 {[%emt 0:04:18]} Rac8 {[%emt 0:06:53]} 22. Qa5 {[%emt 0:03:55]} Nf6 {[%emt 0:03:06]} 23. Rdd1 {[%emt 0:04:18]} Rc6 {[%emt 0:03:43]} 24. e5 {[%emt 0:06:22]} Nd7 {[%emt 0:00:04]} 25. Rd6 {[%emt 0:01:32]} Rec8 {[%emt 0:03:27]} 26. Red1 {[%emt 0:16:30]} Nxe5 {[%emt 0:02:10]} 27. Rd8+ {[%emt 0:03:48]} Kh7 {[%emt 0:00:04]} 28. Rxc8 {[%emt 0:00:34]} Rxc8 {[%emt 0:01:25]} 29. Qxa6 {[%emt 0:01:24]} Nxf3+ {[%emt 0:01:26]} 30. gxf3 {[%emt 0:00:12]} Rb8 {[%emt 0:02:54]} 31. Qc6 {[%emt 0:00:40]} c4 {[%emt 0:01:37]} 32. Kf1 {[%emt 0:02:13]} Re8 {[%emt 0:01:28]} 33. Qxb5 {[%emt 0:04:58]} Qe2+ {[%emt 0:00:32]} 34. Kg2 {[%emt 0:00:06]} Re5 {[%emt 0:01:43]} 35. Rd5 {[%emt 0:00:35]} Re6 {[%emt 0:00:03]} 36. Rd4 {[%emt 0:00:24]} Rg6+ {[%emt 0:01:38]} 37. Rg4 {[%emt 0:00:09]} Rxg4+ {[%emt 0:00:08]} 38. fxg4 {[%emt 0:00:06]} Qxg4+ {[%emt 0:00:03]} 39. Kf1 {[%emt 0:00:19]} Qd1+ {[%emt 0:00:16]} 40. Kg2 {[%emt 0:00:05]} Qg4+ {[%emt 0:00:07]} 41. Kf1 {[%emt 0:30:07]} Qd1+ {[%emt 0:34:15]} 42. Kg2 {[%emt 0:00:09]} Qg4+ {[%emt 0:00:05]} 1/2-1/2